fUSD/lending_fUSD_20260519
["ID","MTS","AMOUNT","RATE_DAILY","PERIOD"]
[422619198,1779161452000,-508.77,0.0003885,7]
[422619199,1779161452000,-610.82,0.0003885,7]
[422619200,1779161452000,-500.0,0.0003885,7]
[422619204,1779161452000,-500.0,0.0003885,7]
[422619195,1779161452000,-150.0,0.0003883,2]
[422619201,1779161452000,-500.0,0.0003885,7]
[422619203,1779161452000,-500.0,0.0003885,7]
[422619205,1779161452000,-500.0,0.0003885,7]
[422619202,1779161452000,-500.0,0.0003885,7]
[422619206,1779161452000,-500.0,0.0003885,7]
[422619295,1779161453000,-1282.501218,0.00039009,30]
[422619304,1779161453000,-221.758984,0.00039009,30]
[422619300,1779161453000,-151.0,0.00039009,30]
[422619298,1779161453000,-151.0,0.00039009,30]
[422619305,1779161453000,-201.101492,0.00039009,7]
[422619296,1779161453000,-1282.501218,0.00039009,30]
[422619290,1779161453000,-221.911184,0.00039009,30]
[422619299,1779161453000,-151.0,0.00039009,30]
[422619297,1779161453000,-1282.501213,0.00039009,30]
[422619294,1779161453000,-1282.501218,0.00039009,30]
[422619292,1779161453000,-151.0,0.00039009,30]
[422619291,1779161453000,-151.0,0.00039009,30]
[422619302,1779161453000,-221.758982,0.00039009,30]
[422619293,1779161453000,-151.0,0.00039009,30]
[422619301,1779161453000,-221.758982,0.00039009,30]
[422619312,1779161453000,-1412.47135479,0.00039009,30]
[422619308,1779161453000,-201.101486,0.00039009,7]
[422619319,1779161453000,-430.55,0.00039009,30]
[422619320,1779161453000,-796.9509005,0.00039009,30]
[422619303,1779161453000,-221.758982,0.00039009,30]
[422619314,1779161453000,-3843.25,0.00039009,30]
[422619316,1779161453000,-500.0,0.00038356,2]
[422619317,1779161453000,-996.13372,0.00039009,30]
[422619315,1779161453000,-301.76454383,0.00039009,30]
[422619318,1779161453000,-151.0,0.0003,7]
[422619310,1779161453000,-151.0,0.00039009,30]
[422619311,1779161453000,-290620.58251023,0.00039009,30]
[422619309,1779161453000,-151.0,0.00039009,30]
[422619306,1779161453000,-201.101492,0.00039009,7]
[422619307,1779161453000,-201.101492,0.00039009,7]
[422619313,1779161453000,-39132.88238231,0.00039009,30]
[422619325,1779161454000,-929.26921195,0.00028991,10]
[422619324,1779161454000,-173.294703,0.00025902,2]
[422619322,1779161454000,-1054.62976562,0.00012829,2]
[422619323,1779161454000,-190.908803,0.0002058,2]
[422619321,1779161454000,-18.11153438,0.00012829,2]
[422619332,1779162055000,151.79,6.55e-05,2]
[422619344,1779162631000,-1199.362,0.00012528,2]
[422619340,1779162631000,-1520.60176146,0.00012428,2]
[422619343,1779162631000,-1200.0,0.00012527,2]
[422619342,1779162631000,-300.0,0.00012527,2]
[422619346,1779162631000,-150.0,0.00012528,2]
[422619345,1779162631000,-179.21597341,0.00012528,2]
[422619348,1779162631000,-2000.0,0.00012529,2]
[422619347,1779162631000,-33191.258,0.00012529,2]
[422619341,1779162631000,-174.9,0.0001248,2]
[422619400,1779162632000,-500.0,0.00012628,2]
[422619392,1779162632000,-500.0,0.00012628,2]
[422619396,1779162632000,-500.0,0.00012628,2]
[422619397,1779162632000,-500.0,0.00012628,2]
[422619395,1779162632000,-500.0,0.00012628,2]
[422619390,1779162632000,-500.0,0.00012628,2]
[422619389,1779162632000,-500.0,0.00012628,2]
[422619388,1779162632000,-500.0,0.00012628,2]
[422619386,1779162632000,-500.0,0.00012628,2]
[422619387,1779162632000,-500.0,0.00012628,2]
[422619412,1779162632000,-570.99405927,0.00012628,2]
[422619398,1779162632000,-500.0,0.00012628,2]
[422619399,1779162632000,-500.0,0.00012628,2]
[422619401,1779162632000,-408.60014938,0.00012628,2]
[422619413,1779162632000,-500.0,0.00012628,2]
[422619403,1779162632000,-650.0,0.00012628,2]
[422619404,1779162632000,-500.0,0.00012628,2]
[422619402,1779162632000,-500.0,0.00012628,2]
[422619414,1779162632000,-500.0,0.00012628,2]
[422619405,1779162632000,-500.0,0.00012628,2]
[422619407,1779162632000,-500.0,0.00012628,2]
[422619408,1779162632000,-500.0,0.00012628,2]
[422619406,1779162632000,-500.0,0.00012628,2]
[422619410,1779162632000,-500.0,0.00012628,2]
[422619411,1779162632000,-500.0,0.00012628,2]
[422619409,1779162632000,-500.0,0.00012628,2]
[422619394,1779162632000,-500.0,0.00012628,2]
[422619385,1779162632000,-500.0,0.00012628,2]
[422619384,1779162632000,-500.0,0.00012628,2]
[422619380,1779162632000,-500.0,0.00012628,2]
[422619349,1779162632000,-3001.5551,0.00012529,2]
[422619351,1779162632000,-339.6022,0.00012603,2]
[422619350,1779162632000,-5000.0,0.00012529,2]
[422619352,1779162632000,-269.56289154,0.00012619,2]
[422619354,1779162632000,-5542.75267587,0.00012627,2]
[422619355,1779162632000,-500.0,0.00012628,2]
[422619353,1779162632000,-382.00270392,0.00012627,2]
[422619356,1779162632000,-232.24509423,0.00012628,2]
[422619357,1779162632000,-500.0,0.00012628,2]
[422619358,1779162632000,-500.0,0.00012628,2]
[422619360,1779162632000,-497.47398501,0.00012628,2]
[422619366,1779162632000,-500.0,0.00012628,2]
[422619378,1779162632000,-500.0,0.00012628,2]
[422619364,1779162632000,-500.0,0.00012628,2]
[422619369,1779162632000,-500.0,0.00012628,2]
[422619361,1779162632000,-500.0,0.00012628,2]
[422619365,1779162632000,-500.0,0.00012628,2]
[422619363,1779162632000,-500.0,0.00012628,2]
[422619359,1779162632000,-500.0,0.00012628,2]
[422619368,1779162632000,-500.0,0.00012628,2]
[422619367,1779162632000,-500.0,0.00012628,2]
[422619370,1779162632000,-500.0,0.00012628,2]
[422619372,1779162632000,-500.0,0.00012628,2]
[422619374,1779162632000,-330.64998059,0.00012628,2]
[422619376,1779162632000,-500.0,0.00012628,2]
[422619382,1779162632000,-500.0,0.00012628,2]
[422619362,1779162632000,-500.0,0.00012628,2]
[422619416,1779162632000,-500.0,0.00012628,2]
[422619450,1779162632000,-500.0,0.00012628,2]
[422619425,1779162632000,-500.0,0.00012628,2]
[422619445,1779162632000,-500.0,0.00012628,2]
[422619441,1779162632000,-500.0,0.00012628,2]
[422619452,1779162632000,-500.0,0.00012628,2]
[422619451,1779162632000,-500.0,0.00012628,2]
[422619453,1779162632000,-500.0,0.00012628,2]
[422619454,1779162632000,-302.3351183,0.00012628,2]
[422619464,1779162632000,-500.0,0.00012628,2]
[422619457,1779162632000,-500.0,0.00012628,2]
[422619458,1779162632000,-500.0,0.00012628,2]
[422619456,1779162632000,-500.0,0.00012628,2]
[422619455,1779162632000,-500.0,0.00012628,2]
[422619459,1779162632000,-500.0,0.00012628,2]
[422619444,1779162632000,-500.0,0.00012628,2]
[422619461,1779162632000,-500.0,0.00012628,2]
[422619460,1779162632000,-500.0,0.00012628,2]
[422619465,1779162632000,-500.0,0.00012628,2]
[422619466,1779162632000,-500.0,0.00012628,2]
[422619470,1779162632000,-299.57177799,0.00012628,2]
[422619469,1779162632000,-4224.81679811,0.00012628,2]
[422619471,1779162632000,-129674.05960869,0.00012629,2]
[422619467,1779162632000,-500.0,0.00012628,2]
[422619468,1779162632000,-302.3351183,0.00012628,2]
[422619472,1779162632000,-706.95471448,0.00012629,2]
[422619473,1779162632000,-1114.36445043,0.00012629,2]
[422619474,1779162632000,-378.50748251,0.00012629,2]
[422619415,1779162632000,-500.0,0.00012628,2]
[422619462,1779162632000,-500.0,0.00012628,2]
[422619446,1779162632000,-302.3351183,0.00012628,2]
[422619463,1779162632000,-500.0,0.00012628,2]
[422619447,1779162632000,-500.0,0.00012628,2]
[422619449,1779162632000,-500.0,0.00012628,2]
[422619424,1779162632000,-500.0,0.00012628,2]
[422619418,1779162632000,-500.0,0.00012628,2]
[422619422,1779162632000,-500.0,0.00012628,2]
[422619426,1779162632000,-500.0,0.00012628,2]
[422619419,1779162632000,-500.0,0.00012628,2]
[422619427,1779162632000,-500.0,0.00012628,2]
[422619420,1779162632000,-500.0,0.00012628,2]
[422619421,1779162632000,-500.0,0.00012628,2]
[422619423,1779162632000,-500.0,0.00012628,2]
[422619429,1779162632000,-500.0,0.00012628,2]
[422619439,1779162632000,-500.0,0.00012628,2]
[422619438,1779162632000,-500.0,0.00012628,2]
[422619417,1779162632000,-500.0,0.00012628,2]
[422619435,1779162632000,-500.0,0.00012628,2]
[422619448,1779162632000,-500.0,0.00012628,2]
[422619442,1779162632000,-500.0,0.00012628,2]
[422619440,1779162632000,-500.0,0.00012628,2]
[422619437,1779162632000,-500.0,0.00012628,2]
[422619433,1779162632000,-500.0,0.00012628,2]
[422619428,1779162632000,-500.0,0.00012628,2]
[422619443,1779162632000,-500.0,0.00012628,2]
[422619431,1779162632000,-500.0,0.00012628,2]
[422619434,1779162632000,-500.0,0.00012628,2]
[422619436,1779162632000,-500.0,0.00012628,2]
[422619430,1779162632000,-500.0,0.00012628,2]
[422619432,1779162632000,-500.0,0.00012628,2]
[422619475,1779162633000,-5638.0,0.00012629,2]
[422619531,1779162638000,-500.0,0.00013698,2]
[422619520,1779162638000,-500.0,0.00013698,2]
[422619532,1779162638000,-500.0,0.00013698,2]
[422619521,1779162638000,-574.66661323,0.00013698,2]
[422619515,1779162638000,-500.0,0.00013698,2]
[422619513,1779162638000,-500.0,0.00013698,2]
[422619510,1779162638000,-500.0,0.00013698,2]
[422619512,1779162638000,-500.0,0.00013698,2]
[422619522,1779162638000,-500.0,0.00013698,2]
[422619511,1779162638000,-500.0,0.00013698,2]
[422619514,1779162638000,-500.0,0.00013698,2]
[422619506,1779162638000,-500.0,0.00013698,2]
[422619516,1779162638000,-518.89031973,0.00013698,2]
[422619529,1779162638000,-500.0,0.00013698,2]
[422619550,1779162638000,-9999.99,0.00013699,2]
[422619523,1779162638000,-500.0,0.00013698,2]
[422619526,1779162638000,-509.06477309,0.00013698,2]
[422619527,1779162638000,-371.97687373,0.00013698,2]
[422619525,1779162638000,-500.0,0.00013698,2]
[422619530,1779162638000,-518.50412553,0.00013698,2]
[422619528,1779162638000,-500.0,0.00013698,2]
[422619534,1779162638000,-500.0,0.00013698,2]
[422619542,1779162638000,-500.0,0.00013698,2]
[422619544,1779162638000,-500.0,0.00013698,2]
[422619546,1779162638000,-4999.99,0.00013699,2]
[422619548,1779162638000,-9999.99,0.00013699,2]
[422619533,1779162638000,-517.71281634,0.00013698,2]
[422619509,1779162638000,-500.0,0.00013698,2]
[422619524,1779162638000,-500.0,0.00013698,2]
[422619508,1779162638000,-500.0,0.00013698,2]
[422619481,1779162638000,-5000.0,0.00012727,2]
[422619517,1779162638000,-500.0,0.00013698,2]
[422619480,1779162638000,-1362488.11374389,0.00012629,2]
[422619536,1779162638000,-500.0,0.00013698,2]
[422619482,1779162638000,-172.69,0.00012733,2]
[422619493,1779162638000,-500.0,0.00013698,2]
[422619492,1779162638000,-500.0,0.00013698,2]
[422619491,1779162638000,-500.0,0.00013698,2]
[422619485,1779162638000,-166.82,0.00013087,2]
[422619488,1779162638000,-172.69,0.00013581,2]
[422619484,1779162638000,-503.35374754,0.00012902,2]
[422619483,1779162638000,-151.79,0.00012844,2]
[422619490,1779162638000,-166.82,0.00013627,2]
[422619486,1779162638000,-172.69,0.00013157,2]
[422619489,1779162638000,-255.0,0.00013618,2]
[422619518,1779162638000,-521.48300674,0.00013698,2]
[422619487,1779162638000,-1276.76,0.00013554,2]
[422619496,1779162638000,-500.0,0.00013698,2]
[422619494,1779162638000,-500.0,0.00013698,2]
[422619497,1779162638000,-500.0,0.00013698,2]
[422619498,1779162638000,-500.0,0.00013698,2]
[422619505,1779162638000,-500.0,0.00013698,2]
[422619501,1779162638000,-500.0,0.00013698,2]
[422619504,1779162638000,-500.0,0.00013698,2]
[422619503,1779162638000,-500.0,0.00013698,2]
[422619499,1779162638000,-500.0,0.00013698,2]
[422619500,1779162638000,-500.0,0.00013698,2]
[422619502,1779162638000,-500.0,0.00013698,2]
[422619507,1779162638000,-500.0,0.00013698,2]
[422619519,1779162638000,-500.0,0.00013698,2]
[422619495,1779162638000,-509.12282674,0.00013698,2]
[422619540,1779162638000,-500.0,0.00013698,2]
[422619539,1779162638000,-500.0,0.00013698,2]
[422619662,1779162638000,-316.40536198,0.00016,2]
[422619622,1779162638000,-4114.03,0.00014504,2]
[422619615,1779162638000,-150.0,0.00014247,21]
[422619617,1779162638000,-166.66,0.00014483,2]
[422619603,1779162638000,-384.70703252,0.0001411,2]
[422619618,1779162638000,-299.99,0.00014504,2]
[422619624,1779162638000,-838.75,0.00014504,2]
[422619621,1779162638000,-9999.99,0.00014504,2]
[422619627,1779162638000,-150.99,0.00014504,2]
[422619631,1779162638000,-9999.99,0.00014504,2]
[422619635,1779162638000,-166.82,0.00014707,2]
[422619633,1779162638000,-174.9,0.0001456,2]
[422619639,1779162638000,-433.0,0.00014808,2]
[422619645,1779162638000,-166.66,0.00014974,2]
[422619612,1779162638000,-214.02246322,0.00014189,7]
[422619643,1779162638000,-345.84251893,0.000149,2]
[422619637,1779162638000,-200.0,0.00014743,2]
[422619647,1779162638000,-614.80618852,0.00015008,2]
[422619649,1779162638000,-587.0,0.0001508,2]
[422619651,1779162638000,-2351.0,0.00015158,2]
[422619664,1779162638000,-736.0,0.00016086,2]
[422619666,1779162638000,-392.0,0.00016116,2]
[422619655,1779162638000,-1276.76,0.00015249,2]
[422619668,1779162638000,-193.45,0.00016228,2]
[422619661,1779162638000,-300.0,0.00016,2]
[422619653,1779162638000,-166.82,0.00015247,2]
[422619657,1779162638000,-5542.75267586,0.00015358,2]
[422619538,1779162638000,-500.0,0.00013698,2]
[422619659,1779162638000,-166.66,0.00015465,2]
[422619641,1779162638000,-211.9,0.00014882,2]
[422619611,1779162638000,-150.0,0.00014189,7]
[422619629,1779162638000,-999.99,0.00014504,2]
[422619607,1779162638000,-150.0,0.00014189,7]
[422619537,1779162638000,-500.0,0.00013698,2]
[422619609,1779162638000,-150.0,0.00014189,7]
[422619551,1779162638000,-1488.18,0.00013699,2]
[422619555,1779162638000,-14903.93,0.00013699,2]
[422619559,1779162638000,-404.08232307,0.00013699,2]
[422619553,1779162638000,-520.56,0.00013699,2]
[422619557,1779162638000,-1628.52,0.00013699,2]
[422619561,1779162638000,-420.0,0.00013745,2]
[422619563,1779162638000,-152.0,0.00013754,2]
[422619571,1779162638000,-300.0,0.00013781,2]
[422619566,1779162638000,-150.0,0.00013781,2]
[422619565,1779162638000,-1680.0,0.0001378,2]
[422619569,1779162638000,-206.14188101,0.00013781,2]
[422619573,1779162638000,-300.0,0.00013781,2]
[422619575,1779162638000,-300.0,0.00013781,2]
[422619535,1779162638000,-500.0,0.00013698,2]
[422619589,1779162638000,-2500.0,0.00013781,2]
[422619585,1779162638000,-2500.0,0.00013781,2]
[422619597,1779162638000,-166.66,0.00013992,2]
[422619601,1779162638000,-172.69,0.00014006,2]
[422619593,1779162638000,-2500.0,0.00013781,2]
[422619595,1779162638000,-163.8,0.00013839,2]
[422619599,1779162638000,-250.0,0.00014,2]
[422619605,1779162638000,-166.82,0.00014167,2]
[422619581,1779162638000,-600.0,0.00013781,2]
[422619591,1779162638000,-2500.0,0.00013781,2]
[422619579,1779162638000,-335.91227841,0.00013781,2]
[422619587,1779162638000,-2500.0,0.00013781,2]
[422619577,1779162638000,-300.0,0.00013781,2]
[422619583,1779162638000,-727.45605447,0.00013781,2]
[422619710,1779162639000,-247.00175674,0.00017808,2]
[422619705,1779162639000,-500.0,0.00017808,2]
[422619702,1779162639000,-500.0,0.00017808,2]
[422619707,1779162639000,-500.0,0.00017808,2]
[422619700,1779162639000,-500.0,0.00017808,2]
[422619708,1779162639000,-500.0,0.00017808,2]
[422619709,1779162639000,-500.0,0.00017808,2]
[422619699,1779162639000,-500.0,0.00017808,2]
[422619701,1779162639000,-500.0,0.00017808,2]
[422619703,1779162639000,-500.0,0.00017808,2]
[422619711,1779162639000,-200.46262923,0.00018,2]
[422619704,1779162639000,-500.0,0.00017808,2]
[422619721,1779162639000,-200.46262923,0.000184,2]
[422619718,1779162639000,-499.0,0.00018267,2]
[422619713,1779162639000,-5542.75267586,0.00018089,2]
[422619715,1779162639000,-1141.99,0.000181,2]
[422619712,1779162639000,-350.0,0.00018,2]
[422619714,1779162639000,-361.13026635,0.00018093,2]
[422619717,1779162639000,-200.46262923,0.000182,2]
[422619719,1779162639000,-4609.0,0.00018341,2]
[422619716,1779162639000,-1152.0,0.00018154,2]
[422619720,1779162639000,-1298.1,0.00018356,2]
[422619724,1779162639000,-151.0,0.00018463,2]
[422619734,1779162639000,-151.0,0.00018463,2]
[422619725,1779162639000,-151.0,0.00018463,2]
[422619735,1779162639000,-151.0,0.00018463,2]
[422619706,1779162639000,-500.0,0.00017808,2]
[422619722,1779162639000,-851.4,0.0001841,2]
[422619698,1779162639000,-500.0,0.00017808,2]
[422619736,1779162639000,-151.0,0.00018463,2]
[422619696,1779162639000,-500.0,0.00017808,2]
[422619670,1779162639000,-152.0,0.00016537,2]
[422619669,1779162639000,-851.4,0.00016438,2]
[422619671,1779162639000,-823.0,0.00016546,2]
[422619672,1779162639000,-250.0,0.00016613,2]
[422619674,1779162639000,-3292.0,0.00016673,2]
[422619673,1779162639000,-174.9,0.0001664,2]
[422619675,1779162639000,-157.04,0.00016712,2]
[422619684,1779162639000,-500.0,0.00017808,2]
[422619676,1779162639000,-1276.76,0.00016943,2]
[422619677,1779162639000,-382.00270389,0.00017018,2]
[422619679,1779162639000,-499.0,0.00017445,2]
[422619680,1779162639000,-392.000863,0.00017486,2]
[422619678,1779162639000,-163.8,0.00017299,2]
[422619681,1779162639000,-1252.0,0.00017489,2]
[422619682,1779162639000,-500.0,0.00017808,2]
[422619683,1779162639000,-500.0,0.00017808,2]
[422619687,1779162639000,-500.0,0.00017808,2]
[422619685,1779162639000,-500.0,0.00017808,2]
[422619689,1779162639000,-223.01581067,0.00017808,2]
[422619688,1779162639000,-500.0,0.00017808,2]
[422619690,1779162639000,-500.0,0.00017808,2]
[422619695,1779162639000,-500.0,0.00017808,2]
[422619691,1779162639000,-500.0,0.00017808,2]
[422619694,1779162639000,-500.0,0.00017808,2]
[422619692,1779162639000,-500.0,0.00017808,2]
[422619693,1779162639000,-500.0,0.00017808,2]
[422619697,1779162639000,-500.0,0.00017808,2]
[422619686,1779162639000,-500.0,0.00017808,2]
[422619723,1779162639000,-151.0,0.00018463,2]
[422619787,1779162639000,-536.0,0.00021,2]
[422619730,1779162639000,-151.0,0.00018463,2]
[422619764,1779162639000,-13599.68,0.00020297,2]
[422619763,1779162639000,-6453.0,0.00020175,2]
[422619767,1779162639000,-201.514848,0.00020404,2]
[422619769,1779162639000,-150.93693526,0.0002058,2]
[422619766,1779162639000,-851.4,0.00020381,2]
[422619765,1779162639000,-1276.76,0.00020332,2]
[422619768,1779162639000,-1332.91,0.00020548,2]
[422619770,1779162639000,-500.0,0.00020712,2]
[422619772,1779162639000,-163.8,0.00020758,2]
[422619771,1779162639000,-2090.95102205,0.00020727,2]
[422619774,1779162639000,-500.0,0.00020804,2]
[422619782,1779162639000,-6111.0,0.00021,2]
[422619777,1779162639000,-346.0,0.00021,2]
[422619780,1779162639000,-412.0,0.00021,2]
[422619779,1779162639000,-158.0,0.00021,2]
[422619776,1779162639000,-361.13026635,0.00020827,2]
[422619775,1779162639000,-5542.75267586,0.00020821,2]
[422619778,1779162639000,-513.0,0.00021,2]
[422619781,1779162639000,-15000.0,0.00021,2]
[422619783,1779162639000,-3448.94201354,0.00021,2]
[422619784,1779162639000,-156.0,0.00021,2]
[422619786,1779162639000,-151.0,0.00021,2]
[422619790,1779162639000,-1502.91,0.00021273,2]
[422619788,1779162639000,-1619.79,0.00021273,2]
[422619789,1779162639000,-1017.19,0.00021273,2]
[422619791,1779162639000,-500.79225853,0.00021333,2]
[422619733,1779162639000,-151.0,0.00018463,2]
[422619758,1779162639000,-151.0,0.0002,2]
[422619757,1779162639000,-156.0,0.0002,2]
[422619773,1779162639000,-1141.99,0.000208,2]
[422619759,1779162639000,-536.0,0.0002,2]
[422619731,1779162639000,-151.0,0.00018463,2]
[422619760,1779162639000,-400.0,0.0002,2]
[422619732,1779162639000,-151.0,0.00018463,2]
[422619727,1779162639000,-151.0,0.00018463,2]
[422619729,1779162639000,-151.0,0.00018463,2]
[422619726,1779162639000,-151.0,0.00018463,2]
[422619728,1779162639000,-151.0,0.00018463,2]
[422619738,1779162639000,-151.0,0.00018463,2]
[422619749,1779162639000,-243.466459,0.00019772,2]
[422619737,1779162639000,-151.0,0.00018463,2]
[422619740,1779162639000,-151.0,0.00018463,2]
[422619744,1779162639000,-1276.76,0.00018637,2]
[422619743,1779162639000,-2500.0,0.00018615,2]
[422619745,1779162639000,-174.9,0.00018721,2]
[422619748,1779162639000,-480.6,0.000192,2]
[422619752,1779162639000,-513.0,0.0002,2]
[422619756,1779162639000,-412.0,0.0002,2]
[422619739,1779162639000,-151.0,0.00018463,2]
[422619761,1779162639000,-891.0,0.0002,2]
[422619754,1779162639000,-167.65202294,0.0002,2]
[422619753,1779162639000,-158.0,0.0002,2]
[422619750,1779162639000,-1613.0,0.00019919,2]
[422619762,1779162639000,-442.15844646,0.00020001,2]
[422619751,1779162639000,-346.0,0.0002,2]
[422619747,1779162639000,-12959.13,0.00019178,2]
[422619742,1779162639000,-151.0,0.00018463,2]
[422619741,1779162639000,-151.0,0.00018463,2]
[422619746,1779162639000,-249.769807,0.00019089,2]
[422619755,1779162639000,-931.0,0.0002,2]
[422619829,1779162640000,-513.0,0.00024,2]
[422619835,1779162640000,-851.4,0.00024324,2]
[422619830,1779162640000,-412.0,0.00024,2]
[422619828,1779162640000,-346.0,0.00024,2]
[422619832,1779162640000,-536.0,0.00024,2]
[422619826,1779162640000,-1033.78,0.00023936,2]
[422619833,1779162640000,-500.0,0.00024,2]
[422619827,1779162640000,-1566.0,0.00023979,2]
[422619825,1779162640000,-3996.97,0.0002391,2]
[422619824,1779162640000,-2571.78,0.0002391,2]
[422619822,1779162640000,-1141.99,0.000236,7]
[422619838,1779162640000,-627.898,0.00024479,2]
[422619831,1779162640000,-166.31555179,0.00024,2]
[422619837,1779162640000,-1354.0,0.00024479,2]
[422619851,1779162640000,-500.0,0.00024658,7]
[422619836,1779162640000,-4474.91678066,0.00024397,2]
[422619840,1779162640000,-927.0,0.00024479,2]
[422619846,1779162640000,-1000.0,0.00024658,2]
[422619847,1779162640000,-498.22,0.00024658,2]
[422619841,1779162640000,-150.294,0.00024479,2]
[422619845,1779162640000,-179.56,0.00024658,2]
[422619848,1779162640000,-500.0,0.00024658,7]
[422619844,1779162640000,-151.0,0.00024658,2]
[422619842,1779162640000,-3633.0,0.00024479,2]
[422619843,1779162640000,-6057.0,0.00024479,2]
[422619860,1779162640000,-412.45227684,0.00025,2]
[422619850,1779162640000,-500.0,0.00024658,7]
[422619834,1779162640000,-2090.95102202,0.00024118,2]
[422619839,1779162640000,-3553.305,0.00024479,2]
[422619823,1779162640000,-1209.21,0.00023744,2]
[422619794,1779162640000,-2258.0,0.00021855,2]
[422619820,1779162640000,-5542.75267586,0.00023552,2]
[422619852,1779162640000,-500.0,0.00024658,7]
[422619796,1779162640000,-1209.21,0.00021918,2]
[422619795,1779162640000,-5000.0,0.00021918,2]
[422619793,1779162640000,-160.0,0.0002156,2]
[422619792,1779162640000,-382.00270389,0.00021409,2]
[422619798,1779162640000,-513.0,0.00022,2]
[422619806,1779162640000,-4177.23,0.00022116,2]
[422619808,1779162640000,-851.4,0.00022353,2]
[422619807,1779162640000,-5839.0,0.00022192,2]
[422619809,1779162640000,-1271.74,0.00022466,2]
[422619797,1779162640000,-346.0,0.00022,2]
[422619803,1779162640000,-536.0,0.00022,2]
[422619799,1779162640000,-158.0,0.00022,2]
[422619816,1779162640000,-151.0,0.00023,2]
[422619801,1779162640000,-156.0,0.00022,2]
[422619804,1779162640000,-40681.01,0.00022,2]
[422619802,1779162640000,-151.0,0.00022,2]
[422619805,1779162640000,-450.0,0.00022,2]
[422619810,1779162640000,-152.0,0.00023,7]
[422619814,1779162640000,-412.0,0.00023,2]
[422619813,1779162640000,-171.33842205,0.00023,2]
[422619821,1779162640000,-361.13026635,0.0002356,2]
[422619811,1779162640000,-346.0,0.00023,2]
[422619812,1779162640000,-513.0,0.00023,2]
[422619815,1779162640000,-172.71321792,0.00023,2]
[422619817,1779162640000,-536.0,0.00023,2]
[422619819,1779162640000,-152.0,0.00023014,7]
[422619818,1779162640000,-626.0,0.00023,2]
[422619800,1779162640000,-412.0,0.00022,2]
[422619849,1779162640000,-500.0,0.00024658,7]
[422619861,1779162640000,-555.20562031,0.00025,2]
[422619856,1779162640000,-153.28,0.00024946,7]
[422619889,1779162640000,-382.00270389,0.00025801,2]
[422619892,1779162640000,-550.0,0.00026,2]
[422619900,1779162640000,-851.4,0.00026296,2]
[422619890,1779162640000,-153.28,0.00025811,7]
[422619891,1779162640000,-153.64,0.00025811,7]
[422619893,1779162640000,-153.28,0.00026099,7]
[422619898,1779162640000,-263.50783151,0.00026296,2]
[422619897,1779162640000,-4065.48350973,0.00026296,2]
[422619894,1779162640000,-153.64,0.00026099,7]
[422619896,1779162640000,-361.13026635,0.00026293,2]
[422619895,1779162640000,-5542.75267586,0.00026283,2]
[422619899,1779162640000,-3017.79422518,0.00026296,2]
[422619902,1779162640000,-153.64,0.00026388,2]
[422619913,1779162640000,-4832.81867523,0.00027397,21]